fUST/lending_fUST_20250120
["ID","MTS","AMOUNT","RATE_DAILY","PERIOD"]
[349609435,1737327037199,-500.0,0.00022054,3]
[349609437,1737327037211,-500.0,0.00022054,3]
[349609439,1737327037222,-500.0,0.00022054,3]
[349609441,1737327037231,-953.42,0.00022054,3]
[349609442,1737327037240,-500.0,0.00022054,3]
[349609445,1737327037249,-500.0,0.00022054,3]
[349609446,1737327037259,-500.0,0.00022054,3]
[349609448,1737327037268,-500.0,0.00022054,3]
[349609450,1737327037277,-500.0,0.00022054,3]
[349609452,1737327037286,-500.0,0.00022054,3]
[349609454,1737327037296,-691.76,0.00022054,3]
[349609456,1737327037305,-500.0,0.00022054,3]
[349609458,1737327037315,-2757.66,0.00022054,3]
[349609460,1737327037324,-500.0,0.00022054,3]
[349609462,1737327037333,-431.11727675,0.00022057,2]
[349609464,1737327037343,-500.0,0.00022073,2]
[349609466,1737327037352,-623.86851813,0.00022091,3]
[349609469,1737327037362,-1122.26105022,0.00022091,2]
[349609471,1737327037371,-2040.2832518,0.00022107,3]
[349609473,1737327037381,-469.72558081,0.00022138,2]
[349609475,1737327037391,-505.03386063,0.00022173,2]
[349609477,1737327037400,-500.0,0.0002219,2]
[349609479,1737327037410,-215.50289667,0.0002219,2]
[349609481,1737327037420,-500.0,0.0002219,2]
[349609483,1737327037430,-500.0,0.0002219,2]
[349609485,1737327037439,-500.0,0.0002219,2]
[349609487,1737327037451,-342.12995549,0.0002219,2]
[349609489,1737327037460,-500.0,0.00022191,3]
[349609491,1737327037470,-500.0,0.00022191,3]
[349609492,1737327037480,-500.0,0.00022191,3]
[349609495,1737327037489,-500.0,0.00022191,3]
[349609496,1737327037500,-573.05,0.00022191,3]
[349609498,1737327037509,-500.0,0.00022191,3]
[349609500,1737327037519,-500.0,0.00022191,3]
[349609502,1737327037531,-500.0,0.00022191,3]
[349609504,1737327037540,-500.0,0.00022191,3]
[349609506,1737327037551,-500.0,0.00022191,3]
[349609508,1737327037560,-500.0,0.00022191,3]
[349609510,1737327037570,-500.0,0.00022191,3]
[349609512,1737327037580,-500.0,0.00022191,3]
[349609514,1737327037590,-500.0,0.00022191,3]
[349609517,1737327037601,-500.0,0.00022191,3]
[349609519,1737327037610,-500.0,0.00022191,3]
[349609521,1737327037620,-500.0,0.00022191,3]
[349609522,1737327037629,-500.0,0.00022191,3]
[349609524,1737327037639,-500.0,0.00022191,3]
[349609526,1737327037648,-500.0,0.00022191,3]
[349609529,1737327037658,-500.0,0.00022191,3]
[349609531,1737327037667,-189.09,0.00022191,3]
[349609533,1737327037677,-500.0,0.00022191,3]
[349609534,1737327037686,-500.0,0.00022191,3]
[349609537,1737327037696,-529.79,0.00022191,3]
[349609538,1737327037708,-500.0,0.00022191,3]
[349609540,1737327037717,-500.0,0.00022191,3]
[349609542,1737327037727,-500.0,0.00022191,3]
[349609544,1737327037736,-500.0,0.00022191,3]
[349609546,1737327037746,-500.0,0.00022191,3]
[349609548,1737327037756,-500.0,0.00022191,3]
[349609550,1737327037766,-500.0,0.00022191,3]
[349609552,1737327037774,-577.01,0.00022191,2]
[349609554,1737327037783,-485.33902403,0.00022191,3]
[349609556,1737327037793,-500.0,0.00022191,3]
[349609558,1737327037803,-500.0,0.00022191,3]
[349609560,1737327037814,-500.0,0.00022191,3]
[349609562,1737327037824,-500.0,0.00022191,3]
[349609564,1737327037833,-500.0,0.00022191,3]
[349609567,1737327037843,-500.0,0.00022191,3]
[349609568,1737327037853,-5053.81,0.00022191,3]
[349609571,1737327037863,-500.0,0.00022191,3]
[349609573,1737327037873,-500.0,0.00022191,3]
[349609575,1737327037883,-500.0,0.00022191,3]
[349609577,1737327037892,-500.0,0.00022191,3]
[349609579,1737327037902,-500.0,0.00022191,3]
[349609581,1737327037914,-500.0,0.00022191,3]
[349609583,1737327037923,-500.0,0.00022191,3]
[349609585,1737327037933,-1851.13,0.00022191,3]
[349609587,1737327037943,-500.0,0.00022191,3]
[349609589,1737327037956,-500.0,0.00022191,3]
[349609591,1737327037965,-500.0,0.00022191,3]
[349609593,1737327037975,-639.33,0.00022191,3]
[349609595,1737327037985,-961.42,0.00022191,3]
[349609597,1737327037995,-663.9,0.00022191,3]
[349609599,1737327038005,-500.0,0.00022191,3]
[349609601,1737327038015,-500.0,0.00022191,3]
[349609603,1737327038024,-500.0,0.00022191,3]
[349609605,1737327038035,-500.0,0.00022191,3]
[349609607,1737327038044,-6979.15,0.00022191,3]
[349609609,1737327038054,-500.0,0.00022191,3]
[349609611,1737327038063,-3280.79,0.00022191,3]
[349609614,1737327038072,-418.85337435,0.00022191,3]
[349609617,1737327038081,-500.0,0.00022191,3]
[349609620,1737327038091,-500.0,0.00022191,3]
[349609622,1737327038100,-500.0,0.00022191,3]
[349609625,1737327038110,-500.0,0.00022191,3]
[349609628,1737327038120,-500.0,0.00022191,3]
[349609631,1737327038129,-500.0,0.00022191,3]
[349609633,1737327038139,-500.0,0.00022191,3]
[349609636,1737327038148,-500.0,0.00022191,3]
[349609638,1737327038158,-916.81,0.00022191,3]
[349609641,1737327038167,-500.0,0.00022191,3]
[349609643,1737327038176,-858.63,0.00022191,3]
[349609645,1737327038185,-1470.33,0.00022191,3]
[349609647,1737327038195,-500.0,0.00022191,3]
[349609649,1737327038207,-500.0,0.00022191,3]
[349609651,1737327038217,-3062.46,0.00022191,3]
[349609653,1737327038227,-500.0,0.00022191,3]
[349609655,1737327038238,-500.0,0.00022191,3]
[349609657,1737327038248,-500.0,0.00022191,3]
[349609659,1737327038258,-953.42,0.00022191,3]
[349609661,1737327038267,-500.0,0.00022191,3]
[349609663,1737327038277,-500.0,0.00022191,3]
[349609665,1737327038287,-500.0,0.00022191,3]
[349609667,1737327038296,-500.0,0.00022191,3]
[349609669,1737327038305,-249.98,0.00022191,3]
[349609671,1737327038314,-691.76,0.00022191,3]
[349609673,1737327038324,-500.0,0.00022191,3]
[349609675,1737327038332,-2757.66,0.00022191,3]
[349609677,1737327038342,-2040.2832518,0.0002221,3]
[349609679,1737327038351,-170.71073,0.00022232,2]
[349609681,1737327038361,-270.92003824,0.00022273,2]
[349609683,1737327038371,-500.0,0.00022282,2]
[349609685,1737327038381,-500.0,0.000223,2]
[349609687,1737327038390,-411.60101554,0.000223,2]
[349609689,1737327038400,-111074.02899794,0.000223,7]
[349609691,1737327038410,-500.0,0.00022306,2]
[349609693,1737327038419,-500.0,0.00022306,2]
[349609695,1737327038429,-338.84348904,0.00022306,2]
[349609697,1737327038439,-2040.2832518,0.00022314,3]
[349609699,1737327038452,-190.05545624,0.00022327,2]
[349609710,1737327038550,-500.0,0.00022328,3]
[349609712,1737327038561,-500.0,0.00022328,3]
[349609713,1737327038570,-500.0,0.00022328,3]
[349609715,1737327038580,-500.0,0.00022328,3]
[349609717,1737327038589,-500.0,0.00022328,3]
[349609719,1737327038599,-500.0,0.00022328,3]
[349609721,1737327038609,-500.0,0.00022328,3]
[349609723,1737327038619,-500.0,0.00022328,3]
[349609725,1737327038629,-500.0,0.00022328,3]
[349609727,1737327038639,-500.0,0.00022328,3]
[349609730,1737327038649,-629.25,0.00022328,3]
[349609732,1737327038658,-500.0,0.00022328,3]
[349609734,1737327038668,-500.0,0.00022328,3]
[349609736,1737327038677,-500.0,0.00022328,3]
[349609738,1737327038687,-500.0,0.00022328,3]
[349609739,1737327038695,-500.0,0.00022328,3]
[349609742,1737327038707,-500.0,0.00022328,3]
[349609744,1737327038716,-500.0,0.00022328,3]
[349609745,1737327038725,-500.0,0.00022328,3]
[349609747,1737327038734,-500.0,0.00022328,3]
[349609749,1737327038744,-500.0,0.00022328,3]
[349609752,1737327038754,-500.0,0.00022328,3]
[349609754,1737327038764,-500.0,0.00022328,3]
[349609756,1737327038774,-500.0,0.00022328,3]
[349609758,1737327038783,-500.0,0.00022328,3]
[349609760,1737327038792,-500.0,0.00022328,3]
[349609762,1737327038805,-500.0,0.00022328,3]
[349609764,1737327038814,-581.81303828,0.00022328,3]
[349609766,1737327038824,-519.52,0.00022328,3]
[349609768,1737327038833,-577.01,0.00022328,2]
[349609770,1737327038843,-500.0,0.00022328,3]
[349609772,1737327038852,-209.24,0.00022328,3]
[349609774,1737327038861,-500.0,0.00022328,3]
[349609776,1737327038871,-500.0,0.00022328,3]
[349609778,1737327038881,-500.0,0.00022328,3]
[349609780,1737327038891,-500.0,0.00022328,3]
[349609782,1737327038901,-5053.81,0.00022328,3]
[349609784,1737327038912,-500.0,0.00022328,3]
[349609786,1737327038921,-500.0,0.00022328,3]
[349609788,1737327038931,-500.0,0.00022328,3]
[349609790,1737327038941,-500.0,0.00022328,3]
[349609792,1737327038955,-500.0,0.00022328,3]
[349609794,1737327038967,-500.0,0.00022328,3]
[349609796,1737327038979,-500.0,0.00022328,3]
[349609798,1737327038989,-1851.13,0.00022328,3]
[349609800,1737327039000,-500.0,0.00022328,3]
[349609802,1737327039009,-500.0,0.00022328,3]
[349609805,1737327039020,-500.0,0.00022328,3]
[349609807,1737327039030,-639.33,0.00022328,3]
[349609809,1737327039041,-961.42,0.00022328,3]
[349609811,1737327039052,-663.9,0.00022328,3]
[349609814,1737327039063,-500.0,0.00022328,3]
[349609815,1737327039073,-500.0,0.00022328,3]
[349609817,1737327039083,-500.0,0.00022328,3]
[349609819,1737327039093,-500.0,0.00022328,3]
[349609821,1737327039103,-6979.15,0.00022328,3]
[349609823,1737327039113,-500.0,0.00022328,3]
[349609825,1737327039123,-3280.79,0.00022328,3]
[349609827,1737327039134,-500.0,0.00022328,3]
[349609830,1737327039143,-500.0,0.00022328,3]
[349609832,1737327039153,-364.87186857,0.00022328,3]
[349609833,1737327039162,-500.0,0.00022328,3]
[349609835,1737327039172,-500.0,0.00022328,3]
[349609838,1737327039183,-315.63320055,0.00022328,3]
[349609840,1737327039192,-500.0,0.00022328,3]
[349609842,1737327039202,-645.52494418,0.00022328,3]
[349609844,1737327039212,-916.81,0.00022328,3]
[349609846,1737327039221,-500.0,0.00022328,3]
[349609848,1737327039231,-858.63,0.00022328,3]
[349609850,1737327039240,-1470.33,0.00022328,3]
[349609852,1737327039250,-500.0,0.00022328,3]
[349609854,1737327039259,-500.0,0.00022328,3]
[349609856,1737327039269,-3062.46,0.00022328,3]
[349609858,1737327039278,-500.0,0.00022328,3]
[349609860,1737327039288,-520.73,0.00022328,3]
[349609862,1737327039297,-500.0,0.00022328,3]
[349609864,1737327039307,-953.42,0.00022328,3]
[349609866,1737327039316,-296.32665783,0.00022328,3]
[349609868,1737327039326,-500.0,0.00022328,3]
[349609870,1737327039335,-516.60472172,0.00022328,3]
[349609872,1737327039345,-500.0,0.00022328,3]
[349609874,1737327039355,-691.76,0.00022328,3]
[349609876,1737327039364,-500.0,0.00022328,3]
[349609878,1737327039373,-2757.66,0.00022328,3]
[349609880,1737327039383,-431.11727675,0.00022398,2]
[349609882,1737327039393,-2040.2832518,0.00022417,3]
[349609884,1737327039402,-500.0,0.00022465,3]
[349609886,1737327039412,-173.28946302,0.00022465,3]
[349609888,1737327039421,-500.0,0.00022465,3]
[349609890,1737327039430,-500.0,0.00022465,3]
[349609892,1737327039439,-500.0,0.00022465,3]
[349609894,1737327039449,-500.0,0.00022465,3]
[349609896,1737327039458,-500.0,0.00022465,3]
[349609898,1737327039467,-172.5465676,0.00022465,3]
[349609900,1737327039477,-500.0,0.00022465,3]
[349609902,1737327039487,-618.9548104,0.00022465,3]
[349609904,1737327039497,-500.0,0.00022465,3]
[349609906,1737327039511,-500.0,0.00022465,3]
[349609908,1737327039520,-500.0,0.00022465,3]
[349609910,1737327039530,-500.0,0.00022465,3]
[349609912,1737327039539,-500.0,0.00022465,3]
[349609914,1737327039551,-500.0,0.00022465,3]
[349609916,1737327039562,-500.0,0.00022465,3]
[349609918,1737327039571,-500.0,0.00022465,3]
[349609920,1737327039581,-500.0,0.00022465,3]
[349609922,1737327039590,-500.0,0.00022465,3]
[349609923,1737327039600,-577.01,0.00022465,2]
[349609925,1737327039609,-500.0,0.00022465,3]
[349609927,1737327039618,-500.0,0.00022465,3]
[349609929,1737327039628,-500.0,0.00022465,3]
[349609931,1737327039637,-500.0,0.00022465,3]
[349609933,1737327039646,-500.0,0.00022465,3]
[349609936,1737327039657,-5053.81,0.00022465,3]
[349609937,1737327039666,-500.0,0.00022465,3]
[349609940,1737327039676,-500.0,0.00022465,3]
[349609941,1737327039685,-500.0,0.00022465,3]
[349609943,1737327039695,-500.0,0.00022465,3]
[349609946,1737327039704,-500.0,0.00022465,3]
[349609948,1737327039713,-500.0,0.00022465,3]
[349609949,1737327039723,-1851.13,0.00022465,3]
[349609951,1737327039732,-500.0,0.00022465,3]
[349609953,1737327039741,-500.0,0.00022465,3]
[349609955,1737327039750,-500.0,0.00022465,3]
[349609957,1737327039759,-639.33,0.00022465,3]
[349609959,1737327039769,-961.42,0.00022465,3]
[349609961,1737327039779,-663.9,0.00022465,3]
[349609964,1737327039788,-500.0,0.00022465,3]
[349609965,1737327039798,-500.0,0.00022465,3]
[349609967,1737327039807,-223.56895969,0.00022465,3]
[349609970,1737327039817,-6979.15,0.00022465,3]
[349609972,1737327039827,-3280.79,0.00022465,3]
[349609973,1737327039836,-500.0,0.00022465,3]
[349609976,1737327039845,-500.0,0.00022465,3]
[349609978,1737327039855,-500.0,0.00022465,3]
[349609980,1737327039864,-500.0,0.00022465,3]
[349609981,1737327039874,-500.0,0.00022465,3]
[349609983,1737327039882,-549.97,0.00022465,3]
[349609985,1737327039891,-916.81,0.00022465,3]
[349609987,1737327039901,-500.0,0.00022465,3]
[349609989,1737327039910,-858.63,0.00022465,3]
[349609991,1737327039919,-1470.33,0.00022465,3]
[349609993,1737327039928,-500.0,0.00022465,3]
[349609995,1737327039938,-500.0,0.00022465,3]
[349609997,1737327039947,-3062.46,0.00022465,3]
[349609999,1737327039956,-500.0,0.00022465,3]
[349610000,1737327039965,-500.0,0.00022465,3]
[349610001,1737327039975,-953.42,0.00022465,3]
[349610002,1737327039985,-520.83,0.00022465,3]
[349610003,1737327039995,-500.0,0.00022465,3]
[349610004,1737327040004,-691.76,0.00022465,3]
[349610005,1737327040014,-500.0,0.00022465,3]
[349610006,1737327040023,-2757.66,0.00022465,3]
[349610007,1737327040033,-24682.55265299,0.000225,2]
[349610008,1737327040043,-2991.64961624,0.000225,2]
[349610009,1737327040052,-2040.2832518,0.00022521,3]
[349610011,1737327040061,-200.422713,0.00022548,2]
[349610012,1737327040070,-28622.71344617,0.0002258,60]
[349610013,1737327040080,-1256.9,0.000226,2]
[349610014,1737327040089,-20867.0,0.000226,2]
[349610016,1737327040098,-500.0,0.00022602,3]
[349610017,1737327040107,-500.0,0.00022602,3]
[349610019,1737327040117,-228.48739793,0.00022602,3]
[349610021,1737327040126,-500.0,0.00022602,3]
[349610023,1737327040136,-500.0,0.00022602,3]
[349610025,1737327040145,-500.0,0.00022602,3]
[349610027,1737327040154,-500.0,0.00022602,3]
[349610029,1737327040163,-577.01,0.00022602,2]
[349610031,1737327040173,-500.0,0.00022602,3]
[349610033,1737327040183,-500.0,0.00022602,3]
[349610035,1737327040193,-500.0,0.00022602,3]
[349610037,1737327040203,-5053.81,0.00022602,3]
[349610040,1737327040213,-500.0,0.00022602,3]
[349610042,1737327040222,-500.0,0.00022602,3]
[349610044,1737327040231,-500.0,0.00022602,3]
[349610046,1737327040241,-1851.13,0.00022602,3]
[349610048,1737327040250,-500.0,0.00022602,3]
[349610050,1737327040259,-639.33,0.00022602,3]
[349610052,1737327040269,-961.42,0.00022602,3]
[349610055,1737327040279,-663.9,0.00022602,3]
[349610056,1737327040289,-500.0,0.00022602,3]
[349610058,1737327040298,-510.91,0.00022602,3]
[349610061,1737327040308,-6979.15,0.00022602,3]
[349610063,1737327040318,-3280.79,0.00022602,3]
[349610066,1737327040328,-500.0,0.00022602,3]
[349610068,1737327040337,-500.0,0.00022602,3]
[349610070,1737327040348,-500.0,0.00022602,3]
[349610072,1737327040358,-500.0,0.00022602,3]
[349610074,1737327040367,-916.81,0.00022602,3]
[349610076,1737327040377,-500.0,0.00022602,3]
[349610078,1737327040387,-858.63,0.00022602,3]
[349610080,1737327040397,-1470.33,0.00022602,3]
[349610082,1737327040407,-500.0,0.00022602,3]
[349610084,1737327040416,-3062.46,0.00022602,3]
[349610086,1737327040426,-500.0,0.00022602,3]
[349610088,1737327040435,-953.42,0.00022602,3]
[349610090,1737327040445,-500.0,0.00022602,3]
[349610092,1737327040465,-691.76,0.00022602,3]
[349610094,1737327040476,-500.0,0.00022602,3]
[349610096,1737327040485,-2757.66,0.00022602,3]
[349610098,1737327040495,-1000.0,0.00022621,2]
[349610100,1737327040512,-2040.2832518,0.00022624,3]
[349610102,1737327040523,-2040.2832518,0.00022728,3]
[349610104,1737327040533,-431.11727675,0.00022738,2]
[349610106,1737327040543,-500.0,0.00022739,3]
[349610108,1737327040554,-577.01,0.00022739,2]
[349610110,1737327040563,-500.0,0.00022739,3]
[349610112,1737327040572,-500.0,0.00022739,3]
[349610114,1737327040582,-5053.81,0.00022739,3]
[349610116,1737327040595,-365.72,0.00022739,3]
[349610118,1737327040605,-1851.13,0.00022739,3]
[349610120,1737327040614,-639.33,0.00022739,3]
[349610122,1737327040624,-961.42,0.00022739,3]
[349610124,1737327040634,-663.9,0.00022739,3]
[349610127,1737327040644,-500.0,0.00022739,3]
[349610129,1737327040654,-6979.15,0.00022739,3]
[349610131,1737327040663,-3280.79,0.00022739,3]
[349610133,1737327040673,-500.0,0.00022739,3]
[349610135,1737327040682,-500.0,0.00022739,3]
[349610137,1737327040692,-500.0,0.00022739,3]
[349610139,1737327040701,-500.0,0.00022739,3]
[349610141,1737327040711,-916.81,0.00022739,3]
[349610143,1737327040720,-858.63,0.00022739,3]
[349610145,1737327040729,-1470.33,0.00022739,3]
[349610147,1737327040738,-500.0,0.00022739,3]
[349610148,1737327040747,-3062.46,0.00022739,3]
[349610150,1737327040756,-500.0,0.00022739,3]
[349610152,1737327040766,-953.42,0.00022739,3]
[349610155,1737327040776,-411.94,0.00022739,3]
[349610157,1737327040786,-691.76,0.00022739,3]
[349610159,1737327040795,-504.02,0.00022739,3]
[349610161,1737327040805,-2757.66,0.00022739,3]
[349610163,1737327040814,-11567.58527808,0.0002275,2]
[349610174,1737327040908,-420.0,0.0002275,2]
[349610176,1737327040918,-1000.0,0.0002283,2]
[349610178,1737327040928,-2040.2832518,0.00022831,3]
[349610180,1737327040938,-504.23180366,0.00022848,2]
[349610182,1737327040947,-502.88360454,0.00022854,2]
[349610185,1737327040957,-500.0,0.00022854,2]
[349610187,1737327040967,-992.21655779,0.0002287,2]
[349610189,1737327040977,-500.0,0.00022876,3]
[349610191,1737327040986,-577.01,0.00022876,2]
[349610193,1737327040996,-500.0,0.00022876,3]
[349610194,1737327041005,-500.0,0.00022876,3]
[349610196,1737327041015,-5053.81,0.00022876,3]
[349610199,1737327041025,-1851.13,0.00022876,3]
[349610201,1737327041035,-639.33,0.00022876,3]
[349610202,1737327041045,-961.42,0.00022876,3]
[349610204,1737327041054,-663.9,0.00022876,3]
[349610206,1737327041064,-500.0,0.00022876,3]
[349610208,1737327041073,-6979.15,0.00022876,3]
[349610210,1737327041083,-3280.79,0.00022876,3]
[349610212,1737327041093,-500.0,0.00022876,3]
[349610215,1737327041103,-500.0,0.00022876,3]
[349610217,1737327041112,-500.0,0.00022876,3]
[349610219,1737327041122,-500.0,0.00022876,3]
[349610221,1737327041131,-916.81,0.00022876,3]
[349610223,1737327041142,-858.63,0.00022876,3]
[349610224,1737327041151,-1470.33,0.00022876,3]
[349610227,1737327041161,-500.0,0.00022876,3]
[349610228,1737327041171,-3062.46,0.00022876,3]
[349610231,1737327041180,-500.0,0.00022876,3]
[349610233,1737327041190,-953.42,0.00022876,3]
[349610235,1737327041200,-691.76,0.00022876,3]
[349610237,1737327041210,-2757.66,0.00022876,3]
[349610239,1737327041219,-2040.2832518,0.00022934,3]
[349610241,1737327041229,-2950.0,0.0002297,2]
[349610243,1737327041238,-625.742,0.0002299,2]
[349610245,1737327041247,-7438.69753278,0.00023,2]
[349610247,1737327041256,-612.72317026,0.00023,2]
[349610249,1737327041266,-11252.48631598,0.00023,3]
[349610251,1737327041275,-589.09057227,0.00023,7]
[349610253,1737327041284,-595.25429635,0.00023,2]
[349610255,1737327041294,-151.0,0.00023,7]
[349610257,1737327041304,-7438.69753278,0.00023,3]
[349610259,1737327041313,-500.0,0.00023013,3]
[349610261,1737327041323,-577.01,0.00023013,2]
[349610263,1737327041333,-500.0,0.00023013,3]
[349610265,1737327041343,-500.0,0.00023013,3]
[349610267,1737327041353,-5053.81,0.00023013,3]
[349610269,1737327041363,-1851.13,0.00023013,3]
[349610271,1737327041372,-639.33,0.00023013,3]
[349610273,1737327041382,-961.42,0.00023013,3]
[349610275,1737327041392,-663.9,0.00023013,3]
[349610277,1737327041402,-500.0,0.00023013,3]
[349610279,1737327041412,-151.0,0.00023013,7]
[349610281,1737327041422,-6979.15,0.00023013,3]
[349610283,1737327041432,-3280.79,0.00023013,3]
[349610285,1737327041441,-500.0,0.00023013,3]
[349610287,1737327041451,-151.291614,0.00023013,7]
[349610289,1737327041461,-360.68618938,0.00023013,3]
[349610291,1737327041472,-500.0,0.00023013,3]
[349610293,1737327041482,-500.0,0.00023013,3]
[349610295,1737327041491,-916.81,0.00023013,3]
[349610298,1737327041503,-858.63,0.00023013,3]
[349610300,1737327041512,-1470.33,0.00023013,3]
[349610301,1737327041522,-500.0,0.00023013,3]
[349610304,1737327041532,-3062.46,0.00023013,3]
[349610306,1737327041542,-151.0,0.00023013,7]
[349610308,1737327041551,-191.653709,0.00023013,7]
[349610310,1737327041561,-257.623255,0.00023013,7]
[349610311,1737327041570,-793.996907,0.00023013,7]
[349610313,1737327041579,-438.173601,0.00023013,7]
[349610316,1737327041589,-257.623255,0.00023013,7]
[349610317,1737327041600,-500.0,0.00023013,3]
[349610319,1737327041610,-438.173601,0.00023013,7]
[349610322,1737327041620,-793.996907,0.00023013,7]
[349610324,1737327041630,-953.42,0.00023013,3]
[349610326,1737327041639,-219.575856,0.00023013,7]
[349610328,1737327041650,-219.575856,0.00023013,7]
[349610330,1737327041660,-151.0,0.00023013,7]
[349610331,1737327041669,-691.76,0.00023013,3]
[349610334,1737327041678,-151.0,0.00023013,7]
[349610336,1737327041688,-2757.66,0.00023013,3]
[349610338,1737327041697,-151.0,0.00023013,7]
[349610340,1737327041707,-173.0,0.00023014,2]
[349610342,1737327041716,-2040.2832518,0.00023038,3]
[349610344,1737327041725,-373.59569955,0.00023078,2]
[349610366,1737327041922,-565.39,0.00021917,3]
[349610368,1737327041933,-151.0,0.00023013,7]
[349610370,1737327041943,-57.5215772,0.00023078,2]
[349610372,1737327041952,-703.27377619,0.00023141,3]
[349610374,1737327041963,-1337.00947561,0.00023141,3]
[349610376,1737327041972,-512.51669177,0.0002315,3]
[349610378,1737327041982,-577.01,0.0002315,2]
[349610380,1737327041991,-500.0,0.0002315,3]
[349610382,1737327042000,-5053.81,0.0002315,3]
[349610383,1737327042010,-615.59972784,0.0002315,3]
[349610386,1737327042025,-1235.53027216,0.0002315,3]
[349610388,1737327042034,-639.33,0.0002315,3]
[349610390,1737327042043,-961.42,0.0002315,3]
[349610392,1737327042053,-663.9,0.0002315,3]
[349610394,1737327042063,-500.0,0.0002315,3]
[349610396,1737327042072,-6979.15,0.0002315,3]
[349610398,1737327042082,-53.42381766,0.0002315,3]
[349610400,1737327042093,-511.25,0.0002315,3]
[349610402,1737327042105,-2586.49699779,0.0002315,3]
[349610404,1737327042120,-129.61918455,0.0002315,3]
[349610406,1737327042129,-500.0,0.0002315,3]
[349610408,1737327042139,-500.0,0.0002315,3]
[349610410,1737327042148,-500.0,0.0002315,3]
[349610412,1737327042157,-916.81,0.0002315,3]
[349610414,1737327042166,-858.63,0.0002315,3]
[349610416,1737327042175,-1470.33,0.0002315,3]
[349610418,1737327042185,-500.0,0.0002315,3]
[349610420,1737327042194,-3062.46,0.0002315,3]
[349610422,1737327042204,-500.0,0.0002315,3]
[349610424,1737327042213,-953.42,0.0002315,3]
[349610426,1737327042222,-691.76,0.0002315,3]
[349610428,1737327042231,-2757.66,0.0002315,3]
[349610430,1737327042240,-536.0,0.00023212,2]
[349610432,1737327042249,-2063.0,0.00023212,2]
[349610434,1737327042259,-2308.0,0.00023212,2]
[349610436,1737327042268,-395.0,0.00023212,2]
[349610438,1737327042277,-353.6953314,0.00023233,2]
[349610440,1737327042286,-353.6953314,0.00023233,2]
[349610442,1737327042295,-353.6953314,0.00023233,2]
[349610444,1737327042305,-353.6953314,0.00023233,2]
[349610446,1737327042314,-353.6953314,0.00023233,2]
[349610448,1737327042324,-353.6953314,0.00023233,2]
[349610450,1737327042333,-353.6953314,0.00023233,2]
[349610452,1737327042342,-2040.2832518,0.00023245,3]
[349610454,1737327042352,-151.0,0.00023287,7]
[349610456,1737327042361,-151.0,0.00023287,7]
[349610458,1737327042370,-151.0,0.00023287,7]
[349610460,1737327042379,-151.0,0.00023287,7]
[349610462,1737327042388,-151.0,0.00023287,7]
[349610464,1737327042397,-151.0,0.00023287,7]
[349610466,1737327042406,-151.0,0.00023287,7]
[349610468,1737327042415,-197.079048,0.00023287,7]
[349610470,1737327042424,-151.0,0.00023287,7]
[349610472,1737327042433,-151.0,0.00023287,7]